lending/lending_fUSD_20250122
["ID","MTS","AMOUNT","RATE_DAILY","PERIOD"]
[350041528,1737588652933,-295.47493229,0.00021998,4]
[350041529,1737588652942,-151.60281456,0.00021998,4]
[350041530,1737588652952,-500.0,0.00021998,2]
[350041531,1737588652961,-744.74,0.00021999,2]
[350041532,1737588652970,-500.0,0.00021999,2]
[350041533,1737588652979,-500.0,0.00021999,2]
[350041534,1737588652988,-500.0,0.00021999,2]
[350041535,1737588652997,-500.0,0.00021999,2]
[350041536,1737588653007,-601.88,0.00021999,2]
[350041537,1737588653016,-500.0,0.00021999,2]
[350041538,1737588653024,-500.0,0.00021999,2]
[350041539,1737588653034,-500.0,0.00021999,2]
[350041540,1737588653044,-500.0,0.00021999,2]
[350041541,1737588653053,-500.0,0.00021999,2]
[350041542,1737588653063,-258.65,0.00021999,2]
[350041543,1737588653072,-1577.0,0.00022,2]
[350041544,1737588653081,-202.5731178,0.00022,2]
[350041545,1737588653091,-1392455.2479848,0.00022,2]
[350041546,1737588653101,-1604707.18782639,0.00022,2]
[350041547,1737588653110,-5000.0,0.00022,2]
[350041548,1737588653119,-500.0,0.00022,2]
[350041549,1737588653128,-500.16200301,0.00022,2]
[350041550,1737588653137,-245.60909497,0.00022,2]
[350041551,1737588653147,-132033.92455182,0.00022,2]
[350041552,1737588653156,-23761.74526762,0.00022,5]
[350041553,1737588653165,-5644859.75698537,0.00022,2]
[350041554,1737588653174,-5564124.92126987,0.00022,2]
[350041555,1737588653183,-1304299.35810202,0.00022,2]
[350041556,1737588653192,-2722853.39888748,0.00022,2]
[350041557,1737588653201,-1327099.06978131,0.00022,2]
[350041558,1737588653211,-1754078.0675087,0.00022,2]
[350041559,1737588653220,-4430269.82524792,0.00022,2]
[350041560,1737588653347,-203.1,0.00022,2]
[350041561,1737588653357,-500.0,0.00022,9]
[350041562,1737588653367,-150.0,0.00022,4]
[350041563,1737588653377,-345235.21,0.00022,30]
[350041564,1737588653386,-7591.17966391,0.00022,2]
[350041565,1737588653397,-3712242.94236543,0.00022,2]
[350041566,1737588653407,-756.16076055,0.00022,7]
[350041567,1737588653419,-1581496.2716704,0.00022,2]
[350041568,1737588653850,-257.13,0.00017769,2]
[350041569,1737588653862,-48.66986808,0.00017769,2]
[350041570,1737588653873,-500.0,0.00019178,2]
[350041571,1737588653884,-509.5,0.00019178,2]
[350041572,1737588653897,-480.37374298,0.00019178,2]
[350041573,1737588653906,-500.0,0.00019452,2]
[350041574,1737588653915,-509.5,0.00019452,2]
[350041575,1737588653924,-508.28538993,0.00019726,2]
[350041576,1737588653934,-17367.67060976,0.00022,2]
[350041577,1737588653955,-500.0,0.00019178,2]
[350041578,1737588653965,-509.5,0.00019726,2]
[350041579,1737588653975,-4138.96563215,0.00022,2]
[350041580,1737588654296,-500.0,0.00019178,2]
[350041581,1737588654306,-500.0,0.00019178,2]
[350041582,1737588654315,-500.0,0.00019178,2]
[350041583,1737588654324,-500.0,0.00019178,2]
[350041584,1737588654336,-227.93293432,0.00019452,2]
[350041585,1737588654345,-500.0,0.00019452,2]
[350041586,1737588654355,-500.0,0.00019452,2]
[350041587,1737588654364,-500.0,0.00019726,2]
[350041588,1737588654375,-500.0,0.00019726,2]
[350041589,1737588654385,-509.5,0.0002,2]
[350041590,1737588654396,-500.0,0.0002,2]
[350041591,1737588654411,-509.5,0.00020273,2]
[350041592,1737588654426,-500.0,0.00020273,2]
[350041593,1737588654439,-509.5,0.00020547,2]
[350041594,1737588654452,-500.0,0.00020547,2]
[350041595,1737588654466,-509.5,0.00020821,2]
[350041596,1737588654479,-552.58,0.00020821,2]
[350041597,1737588654492,-509.5,0.00021095,2]
[350041598,1737588654505,-509.5,0.00021369,2]
[350041599,1737588654517,-500.0,0.00021567,2]
[350041600,1737588654527,-509.5,0.00021643,2]
[350041601,1737588654541,-509.5,0.00021917,2]
[350041602,1737588654555,-952715.27430421,0.00022,2]
[350041603,1737588654572,-12895.65277055,0.00022,2]
[350041604,1737588654601,-500.0,0.00019452,2]
[350041605,1737588654615,-503.52809687,0.000217,2]
[350041606,1737588654627,-1352.99055943,0.00022,2]
[350041607,1737588654676,-500.0,0.00019726,2]
[350041608,1737588654690,-121.97234542,0.0002,2]
[350041609,1737588794017,2000.0,0.00021951,120]
[350041611,1737589068957,214.0,0.00022004,120]
[350041613,1737589394857,2000.0,0.00021952,120]
[350041614,1737589598227,150.0,8e-05,5]
[350041615,1737589713822,420.4,0.00022005,120]
[350041625,1737589832238,-157.22,0.00010137,2]
[350041626,1737589832247,-100.54663659,0.00010981,2]
[350041627,1737589832366,-1520.41336341,0.00010981,2]
[350041628,1737589832375,-402.87501478,0.00011519,2]
[350041629,1737589832385,-185.92,0.00011619,2]
[350041630,1737589832394,-168.81,0.00011627,2]
[350041631,1737589832403,-402.87501476,0.00012229,2]
[350041632,1737589832412,-300.0,0.00012328,2]
[350041633,1737589832422,-169.82,0.00012329,2]
[350041634,1737589832431,-3883.75959996,0.00012329,2]
[350041635,1737589832440,-2201.34074113,0.00012465,2]
[350041636,1737589832449,-928.13,0.00012567,2]
[350041637,1737589832459,-300.08,0.00012603,2]
[350041638,1737589832469,-1000.0,0.00012615,2]
[350041639,1737589832478,-200.0,0.00012666,2]
[350041640,1737589832488,-3570.84,0.00012689,2]
[350041641,1737589832497,-692.65,0.00012764,2]
[350041642,1737589832506,-580.01,0.00012772,2]
[350041643,1737589832515,-916.72,0.00012802,2]
[350041644,1737589832525,-1787.07,0.00012804,2]
[350041645,1737589832535,-1973.62,0.00012811,2]
[350041646,1737589832544,-3185.16,0.00012822,2]
[350041647,1737589832553,-1532.4,0.00012899,2]
[350041648,1737589832562,-189.3,0.00012912,2]
[350041649,1737589832571,-3889.19,0.00012912,2]
[350041650,1737589832581,-699.56,0.00012946,2]
[350041651,1737589832590,-6210.47,0.00012969,2]
[350041652,1737589832599,-5479.43425357,0.0001305,2]
[350041653,1737589832610,-2097.72946846,0.0001305,2]
[350041654,1737589832751,-3471.04627797,0.0001305,2]
[350041655,1737589832759,-2137.22,0.00013073,2]
[350041656,1737589832769,-1620.96,0.00013245,2]
[350041657,1737589832778,-250.0,0.00013394,2]
[350041658,1737589832787,-381.46855967,0.00013497,2]
[350041659,1737589832796,-420.0,0.00013529,2]
[350041660,1737589832810,-200.0,0.00013699,2]
[350041661,1737589832819,-199.0,0.00013699,2]
[350041662,1737589832828,-254.31237311,0.00013994,2]
[350041663,1737589832837,-150.0,0.00013994,2]
[350041664,1737589832846,-500.0,0.00014055,2]
[350041665,1737589832855,-5390.03865806,0.00014137,2]
[350041666,1737589832864,-15756.3986049,0.00014165,7]
[350041667,1737589832874,-15836.1580348,0.00014165,7]
[350041668,1737589832884,-49601.16120311,0.00014165,7]
[350041669,1737589832895,-3271.0,0.00014165,7]
[350041672,1737589838195,-1379.11196289,0.00014165,7]
[350041674,1737589838206,-342.37063307,0.00014192,2]
[350041675,1737589838313,-657.62936693,0.00014192,2]
[350041676,1737589838322,-177.53,0.00014239,2]
[350041677,1737589838331,-528.67811056,0.00014247,2]
[350041678,1737589838429,-1471.32188944,0.00014247,2]
[350041679,1737589838439,-188.45,0.0001428,2]
[350041680,1737589838448,-250.0,0.00014376,2]
[350041681,1737589838458,-199.0,0.00014384,2]
[350041682,1737589838468,-250.0,0.00014403,2]
[350041683,1737589838477,-4067.47092805,0.00014481,2]
[350041684,1737589838489,-500.0,0.00014481,2]
[350041685,1737589838549,-25510.94907195,0.00014481,2]
[350041687,1737589838558,-313.85,0.00014516,2]
[350041689,1737589838568,-1207.24,0.00014534,2]
[350041690,1737589838577,-235.59,0.00014534,2]
[350041691,1737589838587,-250.0,0.00014534,2]
[350041692,1737589838596,-105631.35812532,0.00014541,2]
[350041693,1737589838605,-23900.0,0.00014541,2]
[350041694,1737589838615,-169.69,0.00014544,2]
[350041695,1737589838624,-500.0,0.00014548,2]
[350041696,1737589838634,-1500.0,0.00014553,2]
[350041697,1737589838643,-832.33,0.00014596,2]
[350041698,1737589838653,-6945.63,0.0001465,2]
[350041699,1737589838662,-587.0,0.00014847,2]
[350041701,1737589838671,-550.0,0.00015,2]
[350041703,1737589838680,-189.3,0.00015043,2]
[350041705,1737589838689,-199.0,0.00015068,2]
[350041707,1737589838698,-255.0,0.00015113,2]
[350041709,1737589838708,-31424.97980405,0.00015183,2]
[350041710,1737589838718,-163.14142682,0.00015267,2]
[350041712,1737589838727,-1620.96,0.00015509,2]
[350041714,1737589838736,-199.0,0.00015753,2]
[350041716,1737589838745,-1000.0,0.00015769,2]
[350041717,1737589838755,-31424.97980398,0.00015929,2]
[350041718,1737589838764,-1058.0,0.00016,2]
[350041719,1737589838773,-577.82749207,0.00016259,2]
[350041720,1737589838782,-246.87975232,0.00016259,2]
[350041721,1737589838791,-70672.0,0.0001626,2]
[350041722,1737589838802,-823.0,0.00016293,2]
[350041723,1737589838812,-433.0,0.00016317,2]
[350041724,1737589838821,-1207.24,0.00016351,2]
[350041725,1737589838831,-169.69,0.00016362,2]
[350041726,1737589838840,-163.14142682,0.00016373,2]
[350041727,1737589838850,-199.0,0.00016438,2]
[350041728,1737589838859,-156.64,0.00016658,30]
[350041729,1737589838868,-31424.97980398,0.00016676,2]
[350041730,1737589838878,-600.0,0.00017,2]
[350041731,1737589838895,-1000.0,0.00017346,2]
[350041732,1737589838906,-31424.97980398,0.00017422,2]
[350041733,1737589838915,-163.14142682,0.00017478,2]
[350041734,1737589838924,-5558.0,0.000175,5]
[350041735,1737589838933,-1082.60806923,0.000176,2]
[350041736,1737589838942,-1082.60806916,0.000176,2]
[350041737,1737589838951,-1082.60806916,0.000176,2]
[350041738,1737589838961,-1082.60806916,0.000176,2]
[350041739,1737589838970,-1082.60806916,0.000176,2]
[350041740,1737589838979,-1082.60806916,0.000176,2]
[350041741,1737589838989,-1082.60806916,0.000176,2]
[350041742,1737589838998,-1082.60806916,0.000176,2]
[350041743,1737589839007,-1082.60806916,0.000176,2]
[350041744,1737589839017,-1082.60806916,0.000176,2]
[350041745,1737589839026,-1082.60806916,0.000176,2]
[350041746,1737589839035,-1082.60806916,0.000176,2]
[350041747,1737589839045,-335.0,0.00017632,2]
[350041748,1737589839054,-215.27725224,0.000177,2]
[350041749,1737589839063,-215.27725224,0.000177,2]
[350041750,1737589839073,-1620.96,0.00017773,2]
[350041751,1737589839082,-1082.60806916,0.00017797,2]
[350041752,1737589839092,-1152.0,0.0001788,2]
[350041753,1737589839101,-1787.07,0.00017925,2]
[350041754,1737589839112,-1082.60806916,0.00018038,2]
[350041755,1737589839121,-200.0,0.00018082,2]
[350041756,1737589839132,-795.81,0.00018082,2]
[350041757,1737589839142,-1207.24,0.00018168,2]
[350041758,1737589839151,-31424.97980398,0.00018168,2]
[350041759,1737589839161,-169.69,0.0001818,2]
[350041760,1737589839171,-1082.60806916,0.00018279,2]
[350041761,1737589839182,-7653.11,0.00018356,2]
[350041762,1737589839192,-2082.58,0.00018437,2]
[350041763,1737589839202,-168.814,0.00018437,2]
[350041764,1737589839213,-1082.60806916,0.00018521,2]
[350041765,1737589839222,-508.73240013,0.00018548,2]
[350041766,1737589839232,-500.0,0.00018548,2]
[350041767,1737589839243,-163.14142682,0.00018584,2]
[350041768,1737589839253,-795.81,0.00018751,2]
[350041769,1737589839262,-1082.60806916,0.00018762,2]
[350041770,1737589839272,-31424.97980398,0.00018915,2]
[350041771,1737589839281,-1000.0,0.00018923,2]
[350041772,1737589839290,-650.0,0.00019,2]
[350041773,1737589839299,-1082.60806916,0.00019003,2]
[350041774,1737589839308,-1000.0,0.00019077,2]
[350041775,1737589839318,-2653.94759838,0.00019078,2]
[350041776,1737589839327,-352.54175268,0.00019078,2]
[350041777,1737589839336,-1985.0,0.000191,2]
[350041778,1737589839346,-500.0,0.00019173,2]
[350041779,1737589839355,-358.94543322,0.00019173,2]
[350041780,1737589839364,-500.0,0.00019173,2]
[350041781,1737589839373,-500.0,0.00019178,2]
[350041782,1737589839382,-500.0,0.00019178,2]
[350041783,1737589839391,-500.0,0.00019178,2]
[350041784,1737589839401,-500.0,0.00019178,2]
[350041785,1737589839410,-500.0,0.00019178,2]
[350041786,1737589839419,-500.0,0.00019178,2]
[350041787,1737589839428,-500.0,0.00019178,2]
[350041788,1737589839437,-500.0,0.00019178,2]
[350041789,1737589839447,-292.42885973,0.00019178,2]
[350041790,1737589839462,-500.0,0.00019178,2]
[350041791,1737589839471,-500.0,0.00019178,2]
[350041792,1737589839482,-500.0,0.00019178,2]
[350041793,1737589839491,-500.0,0.00019178,2]
[350041794,1737589839500,-500.0,0.00019178,2]
[350041795,1737589839510,-500.0,0.00019178,2]
[350041796,1737589839519,-500.0,0.00019178,2]
[350041797,1737589839528,-425.30772293,0.00019178,2]
[350041798,1737589839538,-500.0,0.00019178,2]
[350041799,1737589839548,-500.0,0.00019178,2]
[350041800,1737589839558,-500.0,0.00019178,2]
[350041801,1737589839567,-500.0,0.00019178,2]
[350041802,1737589839576,-501.89388927,0.00019178,2]
[350041803,1737589839586,-500.0,0.00019178,2]
[350041804,1737589839596,-500.0,0.00019178,2]
[350041805,1737589839605,-500.0,0.00019178,2]
[350041806,1737589839615,-500.0,0.00019178,2]
[350041807,1737589839624,-500.0,0.00019178,2]
[350041808,1737589839634,-500.0,0.00019178,2]
[350041809,1737589839643,-603.62140058,0.00019178,2]
[350041810,1737589839653,-500.0,0.00019178,2]
[350041811,1737589839663,-740.69,0.00019178,2]
[350041812,1737589839672,-500.0,0.00019178,2]
[350041813,1737589839681,-500.0,0.00019178,2]
[350041814,1737589839690,-500.0,0.00019178,2]
[350041815,1737589839700,-500.0,0.00019178,2]
[350041816,1737589839709,-500.0,0.00019178,2]
[350041817,1737589839719,-500.0,0.00019178,2]
[350041818,1737589839728,-500.0,0.00019178,2]
[350041819,1737589839737,-500.0,0.00019178,2]
[350041820,1737589839747,-500.0,0.00019178,2]
[350041821,1737589839924,-500.0,0.00019178,2]
[350041822,1737589839938,-500.0,0.00019178,2]
[350041823,1737589839948,-502.85668816,0.00019178,2]
[350041824,1737589839957,-503.59273306,0.00019178,2]
[350041825,1737589839967,-500.0,0.00019178,2]
[350041826,1737589839977,-500.0,0.00019178,2]
[350041827,1737589839986,-500.0,0.00019178,2]
[350041828,1737589839995,-500.0,0.00019178,2]
[350041829,1737589840004,-500.0,0.00019178,2]
[350041830,1737589840013,-500.0,0.00019178,2]
[350041831,1737589840023,-500.0,0.00019178,2]
[350041832,1737589840032,-500.0,0.00019178,2]
[350041833,1737589840041,-500.0,0.00019178,2]
[350041834,1737589840051,-500.0,0.00019178,2]
[350041835,1737589840061,-500.0,0.00019178,2]
[350041836,1737589840070,-500.0,0.00019178,2]
[350041837,1737589840084,-500.0,0.00019178,2]
[350041838,1737589840096,-536.65099722,0.00019178,2]
[350041839,1737589840105,-505.29128251,0.00019178,2]
[350041840,1737589840114,-502.53775112,0.00019178,2]
[350041841,1737589840123,-500.0,0.00019178,2]
[350041842,1737589840131,-500.0,0.00019178,2]
[350041843,1737589840140,-500.0,0.00019178,2]
[350041844,1737589840149,-500.0,0.00019178,2]
[350041845,1737589840158,-503.06412812,0.00019178,2]
[350041846,1737589840168,-500.0,0.00019178,2]
[350041847,1737589840177,-501.07812397,0.00019178,2]
[350041848,1737589840187,-500.0,0.00019178,2]
[350041849,1737589840198,-506.60787056,0.00019178,2]
[350041850,1737589840208,-500.0,0.00019178,2]
[350041851,1737589840217,-500.0,0.00019178,2]
[350041852,1737589840227,-500.0,0.00019178,2]
[350041853,1737589840237,-500.0,0.00019178,2]
[350041854,1737589840247,-500.0,0.00019178,2]
[350041855,1737589840258,-500.0,0.00019178,2]
[350041856,1737589840267,-500.0,0.00019178,2]
[350041857,1737589840278,-500.0,0.00019178,2]
[350041858,1737589840289,-500.0,0.00019178,2]
[350041859,1737589840299,-337.32953058,0.00019178,2]
[350041860,1737589840308,-500.0,0.00019178,2]
[350041861,1737589840318,-500.0,0.00019178,2]
[350041862,1737589840328,-500.0,0.00019178,2]
[350041863,1737589840338,-500.0,0.00019178,2]
[350041864,1737589840349,-500.0,0.00019178,2]
[350041865,1737589840358,-500.0,0.00019178,2]
[350041866,1737589840369,-500.0,0.00019178,2]
[350041867,1737589840378,-500.0,0.00019178,2]
[350041868,1737589840387,-500.0,0.00019178,2]
[350041869,1737589840396,-500.0,0.00019178,2]
[350041870,1737589840406,-500.0,0.00019178,2]
[350041871,1737589840415,-504.1761883,0.00019178,2]
[350041872,1737589840426,-500.0,0.00019178,2]
[350041873,1737589840435,-500.0,0.00019178,2]
[350041874,1737589840446,-500.0,0.00019178,2]
[350041875,1737589840455,-500.0,0.00019178,2]
[350041876,1737589840465,-500.0,0.00019178,2]
[350041877,1737589840474,-500.0,0.00019178,2]
[350041878,1737589840483,-500.0,0.00019178,2]
[350041879,1737589840493,-500.0,0.00019178,2]
[350041880,1737589840502,-500.0,0.00019178,2]
[350041881,1737589840513,-500.0,0.00019178,2]
[350041882,1737589840522,-500.0,0.00019178,2]
[350041883,1737589840533,-500.0,0.00019178,2]
[350041884,1737589840543,-500.0,0.00019178,2]
[350041885,1737589840553,-500.0,0.00019178,2]
[350041886,1737589840562,-500.0,0.00019178,2]
[350041887,1737589840572,-500.0,0.00019178,2]
[350041888,1737589840581,-500.0,0.00019178,2]
[350041889,1737589840590,-500.0,0.00019178,2]
[350041890,1737589840600,-500.0,0.00019178,2]
[350041891,1737589840609,-500.0,0.00019178,2]
[350041892,1737589840619,-500.0,0.00019178,2]
[350041893,1737589840628,-500.0,0.00019178,2]
[350041894,1737589840637,-500.0,0.00019178,2]
[350041895,1737589840646,-518.98016004,0.00019178,2]
[350041896,1737589840656,-500.0,0.00019178,2]
[350041897,1737589840665,-500.0,0.00019178,2]
[350041898,1737589840675,-500.0,0.00019178,2]
[350041899,1737589840684,-500.0,0.00019178,2]
[350041900,1737589840693,-500.0,0.00019178,2]
[350041901,1737589840702,-500.0,0.00019178,2]
[350041902,1737589840713,-500.0,0.00019178,2]
[350041903,1737589840722,-500.0,0.00019178,2]
[350041904,1737589840731,-507.25806282,0.00019178,2]
[350041905,1737589840741,-500.0,0.00019178,2]
[350041906,1737589840751,-500.0,0.00019178,2]
[350041907,1737589840760,-500.0,0.00019178,2]
[350041908,1737589840770,-500.0,0.00019178,2]
[350041909,1737589840780,-500.0,0.00019178,2]
[350041910,1737589840790,-500.0,0.00019178,2]
[350041911,1737589840800,-500.0,0.00019178,2]
[350041913,1737589840811,-500.0,0.00019178,2]
[350041914,1737589840820,-500.0,0.00019178,2]
[350041915,1737589840830,-500.0,0.00019178,2]
[350041916,1737589840839,-503.44502373,0.00019178,2]
[350041917,1737589840849,-500.0,0.00019178,2]
[350041918,1737589840859,-500.0,0.00019178,2]
[350041919,1737589840868,-500.0,0.00019178,2]
[350041920,1737589840878,-500.0,0.00019178,2]
[350041921,1737589840888,-505.26629073,0.00019178,2]
[350041922,1737589840898,-500.0,0.00019178,2]
[350041923,1737589840907,-500.0,0.00019178,2]
[350041924,1737589840918,-505.06840512,0.00019178,2]
[350041925,1737589840928,-500.0,0.00019178,2]
[350041926,1737589840939,-500.0,0.00019178,2]
[350041927,1737589840948,-500.0,0.00019178,2]
[350041928,1737589840958,-500.0,0.00019178,2]
[350041929,1737589840969,-500.0,0.00019178,2]
[350041930,1737589840979,-500.0,0.00019178,2]
[350041931,1737589840988,-500.0,0.00019178,2]
[350041932,1737589840998,-500.0,0.00019178,2]
[350041933,1737589841007,-500.0,0.00019178,2]
[350041934,1737589841017,-500.0,0.00019178,2]
[350041935,1737589841027,-502.85577398,0.00019178,2]
[350041936,1737589841037,-500.0,0.00019178,2]
[350041937,1737589841046,-500.0,0.00019178,2]
[350041938,1737589841056,-500.0,0.00019178,2]
[350041939,1737589841066,-500.0,0.00019178,2]
[350041940,1737589841076,-500.0,0.00019178,2]
[350041941,1737589841086,-500.0,0.00019178,2]
[350041942,1737589841096,-500.0,0.00019178,2]
[350041943,1737589841106,-500.0,0.00019178,2]
[350041944,1737589841115,-500.0,0.00019178,2]
[350041945,1737589841124,-500.0,0.00019178,2]
[350041946,1737589841133,-500.0,0.00019178,2]
[350041947,1737589841143,-500.0,0.00019178,2]
[350041948,1737589841154,-510.81942448,0.00019178,2]
[350041949,1737589841163,-500.0,0.00019178,2]
[350041950,1737589841174,-500.0,0.00019178,2]
[350041951,1737589841184,-500.0,0.00019178,2]
[350041952,1737589841195,-500.0,0.00019178,2]
[350041953,1737589841204,-500.0,0.00019178,2]
[350041954,1737589841214,-500.0,0.00019178,2]
[350041955,1737589841223,-505.4988823,0.00019178,2]
[350041956,1737589841234,-500.0,0.00019178,2]
[350041957,1737589841243,-500.0,0.00019178,2]
[350041958,1737589841252,-500.0,0.00019178,2]
[350041959,1737589841261,-500.0,0.00019178,2]
[350041960,1737589841271,-500.0,0.00019178,2]
[350041961,1737589841279,-500.0,0.00019178,2]
[350041962,1737589841288,-500.0,0.00019178,2]
[350041963,1737589841297,-500.0,0.00019178,2]
[350041964,1737589841307,-500.0,0.00019178,2]
[350041965,1737589841316,-500.0,0.00019178,2]
[350041966,1737589841325,-500.0,0.00019178,2]
[350041967,1737589841334,-500.0,0.00019178,2]
[350041968,1737589841344,-500.0,0.00019178,2]
[350041969,1737589841354,-500.0,0.00019178,2]
[350041970,1737589841363,-500.0,0.00019178,2]
[350041971,1737589841372,-500.0,0.00019178,2]
[350041972,1737589841382,-533.8384437,0.00019178,2]
[350041973,1737589841391,-500.0,0.00019178,2]
[350041974,1737589841400,-500.0,0.00019178,2]
[350041975,1737589841409,-500.0,0.00019178,2]
[350041976,1737589841418,-500.0,0.00019178,2]
[350041977,1737589841427,-500.0,0.00019178,2]
[350041978,1737589841436,-500.0,0.00019178,2]
[350041979,1737589841445,-500.0,0.00019178,2]
[350041980,1737589841455,-500.0,0.00019178,2]
[350041981,1737589841464,-500.0,0.00019178,2]
[350041982,1737589841473,-500.0,0.00019178,2]
[350041983,1737589841483,-500.0,0.00019178,2]
[350041984,1737589841492,-500.0,0.00019178,2]
[350041985,1737589841501,-500.0,0.00019178,2]
[350041986,1737589841510,-500.0,0.00019178,2]
[350041987,1737589841520,-500.0,0.00019178,2]
[350041988,1737589841529,-500.0,0.00019178,2]
[350041989,1737589841539,-500.0,0.00019178,2]
[350041990,1737589841548,-500.0,0.00019178,2]
[350041991,1737589841557,-500.0,0.00019178,2]
[350041992,1737589841567,-500.0,0.00019178,2]
[350041993,1737589841576,-511.57,0.00019178,2]
[350041994,1737589841585,-500.0,0.00019178,2]
[350041995,1737589841594,-500.0,0.00019178,2]
[350041996,1737589841603,-500.0,0.00019178,2]
[350041997,1737589841612,-500.0,0.00019178,2]
[350041998,1737589841621,-336.17720043,0.00019178,2]
[350041999,1737589841630,-500.0,0.00019178,2]
[350042000,1737589841639,-500.0,0.00019178,2]
[350042001,1737589841649,-500.0,0.00019178,2]
[350042002,1737589841658,-507.31202364,0.00019178,2]
[350042003,1737589841668,-500.0,0.00019178,2]
[350042004,1737589841678,-500.0,0.00019178,2]
[350042005,1737589841687,-500.0,0.00019178,2]
[350042006,1737589841697,-500.0,0.00019178,2]
[350042007,1737589841706,-500.0,0.00019178,2]
[350042008,1737589841715,-500.0,0.00019178,2]
[350042009,1737589841725,-500.0,0.00019178,2]
[350042010,1737589841734,-500.0,0.00019178,2]
[350042011,1737589841743,-511.55,0.00019178,2]
[350042012,1737589841752,-500.0,0.00019178,2]
[350042013,1737589841762,-500.0,0.00019178,2]
[350042014,1737589841771,-500.0,0.00019178,2]
[350042015,1737589841780,-500.0,0.00019178,2]
[350042016,1737589841790,-500.0,0.00019178,2]
[350042017,1737589841802,-500.0,0.00019178,2]
[350042018,1737589841813,-330.14440531,0.00019178,2]
[350042019,1737589841822,-1018.96,0.00019178,2]
[350042020,1737589841833,-500.0,0.00019178,2]
[350042021,1737589841847,-500.0,0.00019178,2]
[350042022,1737589841858,-500.0,0.00019178,2]
[350042023,1737589841867,-500.0,0.00019178,2]
[350042024,1737589841877,-500.0,0.00019178,2]
[350042025,1737589841887,-331.81579567,0.00019178,2]
[350042026,1737589841898,-500.0,0.00019178,2]
[350042027,1737589841907,-500.0,0.00019178,2]
[350042028,1737589841917,-500.0,0.00019178,2]
[350042029,1737589841927,-500.0,0.00019178,2]
[350042030,1737589841942,-500.0,0.00019178,2]
[350042031,1737589841952,-500.0,0.00019178,2]
[350042032,1737589841963,-500.0,0.00019178,2]
[350042033,1737589841973,-500.0,0.00019178,2]
[350042034,1737589841983,-500.0,0.00019178,2]
[350042035,1737589841993,-500.0,0.00019178,2]
[350042036,1737589842002,-500.0,0.00019178,2]
[350042037,1737589842011,-500.0,0.00019178,2]
[350042038,1737589842020,-500.0,0.00019178,2]
[350042039,1737589842030,-500.0,0.00019178,2]
[350042040,1737589842040,-609.95718043,0.00019178,2]
[350042041,1737589842050,-500.0,0.00019178,2]
[350042042,1737589842060,-500.0,0.00019178,2]
[350042043,1737589842070,-500.0,0.00019178,2]
[350042044,1737589842079,-500.0,0.00019178,2]
[350042045,1737589842090,-601.85862202,0.00019178,2]
[350042046,1737589842100,-500.0,0.00019178,2]
[350042047,1737589842109,-500.0,0.00019178,2]
[350042048,1737589842119,-500.0,0.00019178,2]
[350042049,1737589842128,-500.0,0.00019178,2]
[350042050,1737589842137,-500.0,0.00019178,2]
[350042051,1737589842147,-500.0,0.00019178,2]
[350042052,1737589842157,-500.0,0.00019178,2]